bitfinex-derivatives/quotes_ETHF0:USTF0_20241017
["timestamp","ask_amount","ask_price","bid_price","bid_amount"]
[1729123756102,0.901,2616.7,2616.6,2.89511507]
[1729123756308,0.38217,2616.7,2616.6,2.89511507]
[1729123756509,1.28317,2616.7,2616.6,2.22280405]
[1729123756711,4.03617,2616.8,2616.6,4.21781843]
[1729123756903,4.03617,2616.8,2616.7,1.39791405]
[1729123757608,3.07216,2616.8,2616.7,3.27814067]
[1729123757810,3.654,2616.8,2616.7,1.78008405]
[1729123758006,3.654,2616.8,2616.7,3.77487545]
[1729123759111,3.654,2616.8,2616.7,6.57058454]
[1729123759610,3.654,2616.8,2616.7,3.39270545]
[1729123760007,4.03616,2616.8,2616.7,1.39769107]
[1729123761816,2.58616,2616.8,2616.7,1.39769107]
[1729123762211,3.00416,2616.8,2616.7,1.39769107]
[1729123763117,2.622,2616.8,2616.7,1.77986107]
[1729123763417,2.622,2616.8,2616.7,3.77487545]
[1729123763716,3.00416,2616.8,2616.7,1.39769107]
[1729123765007,3.00416,2616.8,2616.7,1.77986107]
[1729123765210,3.00416,2616.8,2616.7,1.39769107]
[1729123765815,3.00416,2616.8,2616.7,1.77986107]
[1729123766009,2.622,2616.8,2616.7,1.77986107]
[1729123766414,1.24,2616.8,2616.7,3.77487545]
[1729123766923,0.28391081,2616.8,2616.7,6.57203842]
[1729123767917,0.28391081,2616.8,2616.7,6.55928816]
[1729123768520,0.38212,2617.1,2617.0,0.38212]
[1729123768825,1.62212,2617.1,2617.0,3.27272066]
[1729123769010,1.62212,2617.1,2617.0,1.77548976]
[1729123769011,1.24,2617.1,2617.0,1.77548976]
[1729123769220,1.24,2617.1,2617.0,2.21658976]
[1729123772117,0.963,2617.3,2617.0,1.83446976]
[1729123772319,1.24,2617.4,2617.2,2.73614272]
[1729123772630,4.35733521,2617.8,2617.4,0.38207]
[1729123772631,2.203,2617.5,2617.4,0.38207]
[1729123772823,2.203,2617.5,2617.4,3.27049693]
[1729123773330,3.6508,2617.8,2617.6,0.38203]
[1729123773519,1.24,2617.7,2617.6,0.99664334]
[1729123773725,1.24,2617.7,2617.6,1.37868334]
[1729123774125,1.24,2617.7,2617.6,2.76906624]
[1729123774528,1.24,2617.7,2617.6,1.37868334]
[1729123776025,4.1708,2617.8,2617.6,1.37868334]
[1729123776225,0.963,2617.8,2617.6,1.37868334]
[1729123776421,0.38203,2617.7,2617.6,1.37868334]
[1729123776625,1.34502,2617.8,2617.6,0.38204]
[1729123776832,0.963,2617.9,2617.5,4.20444334]
[1729123777022,1.34501,2617.9,2617.8,0.38201]
[1729123777227,0.963,2617.9,2617.8,0.38201]
[1729123777428,3.2078,2618.1,2617.8,3.82]
[1729123777623,3.2078,2618.1,2617.9,0.38199]
[1729123777824,3.58978,2618.1,2617.9,0.79259]
[1729123778225,0.38199,2618.0,2617.9,0.4106]
[1729123778832,0.38199,2618.0,2617.9,0.7926]
[1729123780324,0.38199,2618.0,2617.9,0.4106]
[1729123784235,0.38199,2618.0,2617.5,4.70285717]
[1729123784236,0.38204,2617.7,2617.5,3.58985]
[1729123784737,0.38204,2617.7,2617.5,4.03405]
[1729123785141,0.4449,2617.8,2617.5,4.03405]
[1729123785442,0.38204,2617.6,2617.5,4.03405]
[1729123788544,0.38204,2617.6,2617.5,5.03069334]
[1729123789750,0.38204,2617.6,2617.5,4.03405]
[1729123789955,0.38204,2617.6,2617.5,4.03406]
[1729123791749,0.38204,2617.7,2617.6,0.38203]
[1729123795447,2.68,2617.8,2617.5,1.44084334]
[1729123795650,0.38204,2617.6,2617.5,1.82289334]
[1729123795849,0.38204,2617.6,2617.5,0.4442]
[1729123796045,0.38204,2617.6,2617.5,0.82626]
[1729123796449,0.82544,2617.6,2617.5,0.82626]
[1729123799958,2.06544,2617.6,2617.5,0.82626]
[1729123800557,2.06544,2617.6,2617.5,1.44084334]
[1729123800858,0.38206,2617.5,2617.4,0.99664334]
[1729123801059,0.95519,2617.4,2617.1,0.99664334]
[1729123801252,1.6221,2617.2,2617.1,0.99664334]
[1729123801454,0.38212,2617.1,2617.0,1.81516334]
[1729123801763,2.03112,2617.1,2617.0,3.20469128]
[1729123802459,2.03112,2617.1,2617.0,3.44804794]
[1729123802460,1.649,2617.1,2617.0,3.44804794]
[1729123802657,1.649,2617.1,2617.0,4.94310511]
[1729123804261,2.03112,2617.1,2617.0,4.94310511]
[1729123804565,2.03112,2617.1,2617.0,3.70310511]
[1729123804566,1.649,2617.1,2617.0,3.70310511]
[1729123805464,1.649,2617.1,2617.0,3.70372398]
[1729123805860,2.03112,2617.1,2617.0,3.70372398]
[1729123806462,2.03112,2617.1,2617.0,3.32160398]
[1729123806662,2.03112,2617.1,2617.0,1.37847182]
[1729123806867,2.03112,2617.1,2617.0,0.99634182]
[1729123807468,2.03112,2617.1,2617.0,1.37847182]
[1729123807968,0.79112,2617.1,2617.0,2.61847182]
[1729123808166,0.50380281,2617.5,2617.0,4.1258027]
[1729123808372,1.62209,2617.3,2617.2,1.37847498]
[1729123808565,1.348,2617.4,2617.2,4.5778027]
[1729123808868,2.97007,2617.4,2617.3,2.76892458]
[1729123809073,2.97007,2617.4,2617.3,0.99629422]
[1729123809272,2.97007,2617.4,2617.3,0.99635977]
[1729123809567,2.97007,2617.4,2617.3,2.38700954]
[1729123809766,1.73007,2617.4,2617.3,0.99635977]
[1729123810668,0.38209,2617.3,2617.2,0.99635977]
[1729123810864,0.38209,2617.3,2617.1,1.49505717]
[1729123810865,0.3821,2617.2,2617.1,0.99635977]
[1729123811571,0.3821,2617.2,2617.1,2.38400391]
[1729123811771,0.3821,2617.2,2617.1,0.99635977]
[1729123811973,6.8829,2617.2,2617.0,0.99635977]
[1729123812183,0.83762,2617.1,2617.0,0.99635977]
[1729123812561,4.65842,2617.1,2617.0,0.99635977]
[1729123812764,4.65842,2617.1,2617.0,2.38429414]
[1729123812765,0.83762,2617.1,2617.0,2.38429414]
[1729123814173,0.83762,2617.1,2617.0,0.99635977]
[1729123814368,0.83762,2617.1,2617.0,2.38426496]
[1729123814672,0.2639818,2617.1,2617.0,2.38426496]
[1729123815267,0.2639818,2617.1,2617.0,2.38440524]
[1729123815474,0.2639818,2617.1,2617.0,2.38199102]
[1729123815670,0.2639818,2617.1,2617.0,0.99635977]
[1729123816167,4.0847818,2617.1,2617.0,0.99635977]
[1729123816876,4.0847818,2617.1,2616.7,1.99630787]
[1729123816877,0.38215,2616.9,2616.8,0.99635977]
[1729123818483,0.38216,2616.8,2616.7,1.37852977]
[1729123818664,0.38216,2616.8,2616.7,2.76383237]
[1729123819073,0.38216,2616.8,2616.7,2.38166237]
[1729123819277,0.38216,2616.8,2616.7,0.99635977]
[1729123820268,3.5228,2617.0,2616.6,1.90615977]
[1729123820469,0.38217,2616.7,2616.6,1.90615977]
[1729123820669,0.38217,2616.7,2616.6,3.29099876]
[1729123821180,0.38217,2616.7,2616.6,3.29129483]
[1729123821681,0.38217,2616.7,2616.6,3.29110764]
[1729123821976,0.38217,2616.7,2616.6,1.90645584]
[1729123822567,0.942,2616.8,2616.6,1.90645584]
[1729123822776,1.32417,2616.8,2616.7,2.76304379]
[1729123823177,0.942,2616.8,2616.7,2.76304379]
[1729123823381,0.942,2616.8,2616.7,1.76638795]
[1729123823575,1.32416,2616.8,2616.7,3.26144512]
[1729123824179,1.32416,2616.8,2616.7,1.76638795]
[1729123824379,1.32416,2616.8,2616.7,3.26144512]
[1729123824678,1.32416,2616.8,2616.7,1.76638795]
[1729123824879,0.942,2616.8,2616.7,3.26642767]
[1729123825381,1.32416,2616.8,2616.7,3.26642767]
[1729123825781,0.942,2616.8,2616.7,3.26642767]
[1729123826283,1.32416,2616.8,2616.7,3.26642767]
[1729123828272,1.32416,2616.8,2616.7,2.88425767]
[1729123828484,1.32416,2616.8,2616.7,0.99673982]
[1729123828882,1.32416,2616.8,2616.7,2.38641237]
[1729123829078,1.32416,2616.8,2616.7,0.99673982]
[1729123829983,2.56416,2616.8,2616.7,0.99673982]
[1729123830278,0.38217,2616.7,2616.6,1.90653982]
[1729123831484,1.62217,2616.7,2616.6,1.90653982]
[1729123832789,0.38217,2616.7,2616.6,2.28872982]
[1729123833091,0.38217,2616.7,2616.6,3.79462192]
[1729123833285,0.38217,2616.7,2616.6,5.03462192]
[1729123833491,1.32517,2616.8,2616.7,0.38217]
[1729123833785,1.32517,2616.8,2616.7,1.77193475]
[1729123834182,1.32517,2616.8,2616.7,3.26699192]
[1729123834380,0.38213,2617.1,2616.7,13.94642192]
[1729123834575,0.38211,2617.2,2617.0,2.23666532]
[1729123834777,1.62211,2617.2,2617.1,2.29697264]
[1729123834981,1.62211,2617.2,2617.1,3.79197062]
[1729123835182,1.62211,2617.2,2617.1,2.29697264]
[1729123835383,1.62211,2617.2,2617.1,1.9011264]
[1729123835887,1.24,2617.2,2617.1,4.174125]
[1729123836187,1.24,2617.2,2617.1,2.67912702]
[1729123836380,1.24,2617.2,2617.1,4.174125]
[1729123836981,1.6221,2617.2,2617.1,7.381925]
[1729123837382,1.6221,2617.2,2617.1,3.792005]
[1729123838090,1.6221,2617.2,2617.1,2.29700702]
[1729123838291,1.6221,2617.2,2617.1,3.792005]
[1729123838489,1.6221,2617.2,2617.1,2.29700702]
[1729123838795,1.6221,2617.2,2617.1,3.792005]
[1729123839481,1.6221,2617.2,2617.1,3.79259308]
[1729123839988,1.6221,2617.2,2617.1,3.792794]
[1729123841492,1.6221,2617.2,2617.1,2.29779602]
[1729123841689,1.6221,2617.2,2617.1,3.79439452]
[1729123842189,1.6221,2617.2,2617.1,2.29779602]
[1729123842895,1.6221,2617.2,2617.1,3.79465261]
[1729123843084,1.6221,2617.2,2617.1,2.29779602]
[1729123843594,1.6221,2617.2,2617.1,4.29410389]
[1729123844094,1.6221,2617.2,2617.1,2.29779602]
[1729123844499,1.6221,2617.2,2617.1,2.29888363]
[1729123845297,1.6221,2617.2,2617.1,4.2951915]
[1729123847296,1.6221,2617.2,2617.1,7.08528939]
[1729123852197,1.6221,2617.2,2617.1,7.08561839]
[1729123852493,1.6221,2617.2,2617.1,7.08559274]
[1729123853092,1.6221,2617.2,2617.1,7.08644411]
[1729123853287,0.3821,2617.2,2617.1,7.08641491]
[1729123853493,1.6221,2617.2,2617.1,7.0863895]
[1729123853701,1.6221,2617.2,2617.1,5.08928487]
[1729123854000,1.6221,2617.2,2617.1,7.0863916]
[1729123854501,1.6221,2617.2,2617.1,7.08706888]
[1729123858812,1.6221,2617.2,2617.1,7.08735082]
[1729123859419,1.6221,2617.2,2617.1,7.08790021]
[1729123859624,1.6221,2617.2,2617.1,4.29722585]
[1729123859816,1.6221,2617.2,2617.1,3.82902585]
[1729123859817,2.0856,2617.2,2617.1,3.82902585]
[1729123860520,3.3256,2617.2,2617.1,3.82902585]
[1729123860820,3.3256,2617.2,2617.1,0.9989771]
[1729123860821,13.1464,2617.2,2617.1,0.9989771]
[1729123863021,12.09923377,2617.2,2617.1,0.9989771]
[1729123863219,1.56393377,2617.2,2617.1,2.89390878]
[1729123863522,2.80393377,2617.2,2617.1,4.33440188]
[1729123863734,2.6111,2617.2,2617.1,7.12491038]
[1729123864323,2.6111,2617.2,2617.1,4.33440188]
[1729123864926,0.3821,2617.2,2617.1,7.12512966]
[1729123865125,1.6221,2617.2,2617.1,4.33440188]
[1729123865426,1.6221,2617.2,2617.1,7.12520642]
[1729123867724,1.6221,2617.2,2617.1,7.12562953]
[1729123872730,1.6221,2617.2,2617.1,7.12635755]
[1729123873323,2.8621,2617.2,2617.1,6.65505755]
[1729123873619,12.6829,2617.2,2617.1,2.89478443]
[1729123874128,12.6829,2617.2,2617.1,1.39585629]
[1729123874325,15.8907,2617.2,2617.1,2.39530362]
[1729123874528,0.38212,2617.1,2617.0,0.78618995]
[1729123874732,5.44292,2617.1,2617.0,0.40763387]
[1729123875029,0.38215,2616.9,2616.8,1.49892814]
[1729123875227,4.82995,2616.9,2616.8,1.49892814]
[1729123875530,7.41155,2616.9,2616.8,1.49892814]
[1729123875732,8.65155,2616.9,2616.8,1.49892814]
[1729123875934,8.65155,2616.9,2616.8,1.4993654]
[1729123876229,8.07783073,2616.9,2616.8,1.99738867]
[1729123876421,0.38216,2616.8,2616.7,1.99738867]
[1729123876626,2.61116,2616.8,2616.7,1.99738867]
[1729123876828,2.61116,2616.8,2616.7,4.78504829]
[1729123877133,2.61116,2616.8,2616.7,1.99738867]
[1729123877332,2.61116,2616.8,2616.7,4.78075073]
[1729123877526,2.61116,2616.8,2616.7,1.99738867]
[1729123879631,2.8035498,2616.8,2616.7,1.99738867]
[1729123881323,2.4213898,2616.8,2616.6,1.99738867]
[1729123881527,1.62217,2616.7,2616.6,1.99738867]
[1729123881829,1.62217,2616.7,2616.6,4.78002721]
[1729123882538,1.62217,2616.7,2616.6,4.78002647]
[1729123884228,1.62217,2616.7,2616.6,1.99738867]
[1729123884733,1.62217,2616.7,2616.5,1.4416]
[1729123884734,1.24,2616.7,2616.5,2.95388867]
[1729123884931,3.35389,2616.6,2616.5,1.97584595]
[1729123885131,3.35389,2616.6,2616.5,0.4768]
[1729123885332,0.3822,2616.5,2616.4,1.49904595]
[1729123885531,0.38222,2616.4,2616.3,2.46004595]
[1729123885729,1.62222,2616.4,2616.3,2.46004595]
[1729123886934,1.62222,2616.4,2616.3,0.961]
[1729123888437,1.62222,2616.4,2616.3,2.45894235]
[1729123891636,1.62222,2616.4,2616.3,2.84117235]
[1729123892543,1.24,2616.4,2616.3,2.84117235]
[1729123892841,0.982,2616.5,2616.3,2.45894235]
[1729123893139,1.62222,2616.4,2616.3,2.84117235]
[1729123894537,1.24,2616.4,2616.3,4.23052081]
[1729123897147,1.24,2616.4,2616.3,4.23045557]
[1729123897544,1.24,2616.4,2616.3,1.34323]
[1729123897735,1.62222,2616.4,2616.3,1.34323]
[1729123897939,1.24,2616.4,2616.3,1.34323]
[1729123898245,0.38221,2616.5,2616.4,0.38221]
[1729123898443,0.38221,2616.5,2616.4,1.62221]
[1729123898646,1.6222,2616.6,2616.4,0.38222]
[1729123900648,0.3822,2616.5,2616.4,0.38222]
[1729123900843,1.6222,2616.6,2616.4,0.38222]
[1729123901048,0.3822,2616.5,2616.4,0.38222]
[1729123901547,1.24,2616.6,2616.4,0.38222]
[1729123901548,1.24,2616.6,2616.4,3.76720458]
[1729123901841,1.24,2616.6,2616.5,2.8859559]
[1729123902148,1.62219,2616.6,2616.5,2.8859559]
[1729123903148,1.62219,2616.6,2616.5,2.8844725]
[1729123904653,3.2078,2616.9,2616.5,13.39898501]
[1729123904946,1.62216,2616.8,2616.7,1.49685707]
[1729123905140,1.62216,2616.8,2616.7,2.8844619]
[1729123905346,1.62216,2616.8,2616.7,3.40324494]
[1729123905549,1.62216,2616.8,2616.7,3.40333046]
[1729123905743,0.38216,2616.8,2616.7,3.78550046]
[1729123905944,4.4478,2616.9,2616.7,4.64333046]
[1729123906150,1.24,2616.9,2616.8,1.38767681]
[1729123906355,1.62215,2616.9,2616.8,1.38767681]
[1729123906653,1.62215,2616.9,2616.8,6.54055842]
[1729123906846,1.62215,2616.9,2616.8,6.15839842]
[1729123907150,1.62215,2616.9,2616.8,1.38767681]
[1729123911653,1.62215,2616.9,2616.8,3.38350118]
[1729123911950,1.62215,2616.9,2616.8,1.38767681]
[1729123912553,1.62215,2616.9,2616.8,3.38350118]
[1729123912849,1.62215,2616.9,2616.8,1.99582437]
[1729123913055,1.62215,2616.9,2616.8,3.38372495]
[1729123913648,1.62215,2616.9,2616.8,3.76588495]
[1729123913848,1.62215,2616.9,2616.8,3.38372495]
[1729123916356,1.62215,2616.9,2616.8,6.16051747]
[1729123916958,3.58991,2617.2,2617.0,0.38212]
[1729123917255,5.76791,2617.2,2617.1,3.40514535]
[1729123917453,5.76791,2617.2,2617.1,3.91364535]
[1729123917957,5.3858,2617.2,2617.1,3.91364535]
[1729123918154,5.7679,2617.2,2617.1,3.91364535]
[1729123920555,7.0079,2617.2,2617.1,2.88544535]
[1729123920758,7.0079,2617.2,2617.1,1.38790058]
[1729123920962,7.4888,2617.2,2617.1,1.38790058]
[1729123921663,0.38212,2617.1,2617.0,1.49754477]
[1729123921865,1.62212,2617.1,2617.0,2.88602281]
[1729123922862,1.62212,2617.1,2617.0,1.38847804]
[1729123923057,1.62212,2617.1,2617.0,4.4172044]
[1729123923354,1.62212,2617.1,2617.0,2.42047804]
[1729123924159,1.62212,2617.1,2617.0,4.4172044]
[1729123924354,1.62212,2617.1,2617.0,3.91791658]
[1729123924553,1.62212,2617.1,2617.0,1.90377804]
[1729123924755,1.62212,2617.1,2617.0,3.40107659]
[1729123925150,1.62212,2617.1,2617.0,2.88577659]
[1729123926461,1.62212,2617.1,2617.0,2.88540435]
[1729123926762,1.81853609,2617.1,2617.0,2.88540435]
[1729123927162,5.25721609,2617.1,2616.9,1.49729855]
[1729123927464,0.38216,2616.8,2616.7,1.49729855]
[1729123927665,1.62216,2616.8,2616.7,2.88569793]
[1729123928563,1.62216,2616.8,2616.7,1.38839938]
[1729123931167,1.62216,2616.8,2616.7,1.38844634]
[1729123932066,1.62216,2616.8,2616.7,2.88574489]
[1729123932462,1.62216,2616.8,2616.7,2.88579448]
[1729123935166,2.178,2616.8,2616.7,3.38522229]
[1729123935364,0.4916,2617.0,2616.7,7.40239802]
[1729123935564,0.938,2617.1,2616.9,3.23727766]
[1729123935768,0.938,2617.1,2617.0,3.76790359]
[1729123936062,2.56012,2617.1,2617.0,3.76790359]
[1729123936370,1.98650523,2617.1,2617.0,1.38833314]
[1729123936572,1.98650523,2617.1,2617.0,3.7677408]
[1729123936871,1.98650523,2617.1,2617.0,3.3856108]
[1729123937368,1.98650523,2617.1,2617.0,3.8744108]
[1729123937669,1.60438523,2617.1,2617.0,4.2565408]
[1729123938070,1.60438523,2617.1,2617.0,3.8744108]
[1729123938071,1.98650523,2617.1,2617.0,3.8744108]
[1729123938368,1.60438523,2617.1,2617.0,4.2565408]
[1729123938566,1.60438523,2617.1,2617.0,7.02900051]
[1729123939564,1.98650523,2617.1,2617.0,7.02900051]
[1729123939771,1.98650523,2617.1,2617.0,7.02920214]
[1729123940069,1.98650523,2617.1,2617.0,6.64707214]
[1729123940258,1.98650523,2617.1,2617.0,7.02920177]
[1729123940460,1.60438523,2617.1,2617.0,7.0291962]
[1729123940870,1.98650523,2617.1,2617.0,6.6470662]
[1729123941374,1.98650523,2617.1,2617.0,6.64768473]
[1729123942169,1.98650523,2617.1,2617.0,7.02981473]
[1729123943571,1.98650523,2617.1,2617.0,6.64768473]
[1729123943771,1.98650523,2617.1,2617.0,6.64832411]
[1729123944361,1.98650523,2617.1,2617.0,7.03045411]
[1729123945773,1.98650523,2617.1,2617.0,4.65040707]
[1729123945975,1.98650523,2617.1,2617.0,6.6483592]
[1729123946182,1.98650523,2617.1,2617.0,3.38471885]
[1729123946470,1.98650523,2617.1,2617.0,1.38676672]
[1729123946671,1.98650523,2617.1,2617.0,3.38471885]
[1729123950871,1.98650523,2617.1,2617.0,6.15879364]
[1729123951067,1.98650523,2617.1,2617.0,3.38471885]
[1729123951679,1.98650523,2617.1,2617.0,6.15812671]
[1729123952173,1.98650523,2617.1,2617.0,3.38471885]
[1729123954776,1.98650523,2617.1,2617.0,6.15771842]
[1729123955678,0.74650523,2617.1,2617.0,6.15771842]
[1729123955884,1.98650523,2617.1,2617.0,6.15771842]
[1729123956184,1.98650523,2617.1,2617.0,6.15725315]
[1729123956781,1.98650523,2617.1,2617.0,6.15680093]
[1729123957080,2.55412,2617.1,2617.0,6.15680093]
[1729123958283,2.55412,2617.1,2617.0,4.15930102]
[1729123958488,2.55412,2617.1,2617.0,6.15668941]
[1729123961091,2.55412,2617.1,2617.0,6.15670932]
[1729123961290,2.55412,2617.1,2617.0,3.38383754]
[1729123962100,2.55412,2617.1,2617.0,6.15676401]
[1729123962398,2.74872835,2617.1,2617.0,6.15676401]
[1729123962696,2.55412,2617.1,2617.0,3.38383754]
[1729123963893,2.55412,2617.1,2617.0,6.15681746]
[1729123965795,2.55412,2617.1,2617.0,3.38383754]
[1729123966103,2.55412,2617.1,2617.0,6.15691887]
[1729123966400,2.55412,2617.1,2617.0,3.38389855]
[1729123967401,2.55412,2617.1,2617.0,6.1569874]
[1729123967704,2.55412,2617.1,2617.0,3.38389855]
[1729123969902,6.37492,2617.1,2617.0,1.38651016]
[1729123970105,2.55412,2617.1,2617.0,2.8850234]
[1729123970297,6.25822,2617.1,2617.0,2.8850234]
[1729123970492,16.07902,2617.1,2617.0,1.38651016]
[1729123970704,16.07902,2617.1,2616.8,1.49851324]
[1729123970705,0.38215,2616.9,2616.8,1.49851324]
[1729123970904,2.48,2616.9,2616.6,1.99738839]
[1729123971094,5.6878,2616.7,2616.3,1.99738839]
[1729123971297,4.7276,2616.8,2616.1,2.49478046]
[1729123971298,4.4478,2616.4,2616.1,1.99738839]
[1729123971499,0.38226,2616.1,2616.0,1.99738839]
[1729123971706,1.62226,2616.1,2616.0,1.38096946]
[1729123972298,1.62226,2616.1,2616.0,3.37835785]
[1729123972499,1.62226,2616.1,2616.0,1.38096946]
[1729123974814,0.38228,2616.0,2615.9,1.5546]
[1729123975112,1.62228,2616.0,2615.9,2.93408147]
[1729123975315,1.62228,2616.0,2615.9,1.5546]
[1729123979814,1.24,2616.0,2615.9,1.5546]
[1729123980018,0.19485542,2616.2,2615.9,2.7946]
[1729123980019,0.986,2616.1,2615.9,2.7946]
[1729123980226,0.986,2616.1,2616.0,0.38227]
[1729123980410,2.226,2616.1,2615.9,1.93688]
[1729123980711,2.226,2616.1,2616.0,0.38228]
[1729123980917,2.226,2616.1,2615.9,1.5546]
[1729123980918,2.226,2616.1,2615.9,1.93688]
[1729123981918,2.226,2616.1,2615.9,1.5546]
[1729123982112,2.226,2616.1,2616.0,0.38228]
[1729123982924,0.20018899,2616.4,2616.1,0.38225]
[1729123983219,0.20018899,2616.4,2616.2,1.62224]
[1729123983220,1.24,2616.3,2616.2,1.62224]
[1729123983519,2.226,2616.4,2616.3,0.88253]
[1729123983718,2.226,2616.4,2616.3,1.38003]
[1729123983914,2.226,2616.4,2616.3,0.9978]
[1729123984110,1.24,2616.4,2616.3,0.9978]
[1729123984314,1.24,2616.4,2616.3,1.38003]
[1729123984912,1.36821,2616.5,2616.3,1.38003]
[1729123984913,0.986,2616.5,2616.3,2.62002]
[1729123985211,1.36821,2616.5,2616.4,0.4995]
[1729123986313,2.60821,2616.5,2616.4,0.4995]
[1729123988811,2.226,2616.5,2616.4,0.4995]
[1729123989015,2.6082,2616.5,2616.4,0.4995]
[1729123991722,2.226,2616.5,2616.4,0.88172]
[1729123991921,2.226,2616.5,2616.4,0.4995]
[1729123992215,2.6082,2616.5,2616.4,0.4995]
[1729123993121,1.24,2616.5,2616.4,0.4995]
[1729123993321,1.24,2616.6,2616.5,0.3822]
[1729123993815,1.24,2616.6,2616.4,0.88171]
[1729123994319,1.24,2616.6,2616.5,0.3822]
[1729123996221,0.66626834,2616.6,2616.5,0.3822]
[1729123996421,1.24,2616.6,2616.5,0.3822]
[1729123999925,1.62219,2616.6,2616.5,0.3822]
[1729124000124,1.24,2616.6,2616.5,0.3822]
[1729124000623,3.2078,2617.0,2616.5,12.4356126]
[1729124000926,2.67311,2617.2,2617.0,0.38213]
[1729124001225,2.67311,2617.2,2617.1,1.0483]
[1729124001226,1.43311,2617.2,2617.1,1.0483]
[1729124001819,2.67311,2617.2,2617.1,1.0483]
[1729124003227,2.67311,2617.2,2617.1,0.5327]
[1729124004025,0.38213,2617.0,2616.9,0.5156]
[1729124004331,1.62213,2617.0,2616.9,0.5156]
[1729124004728,1.62213,2617.0,2616.9,1.0465]
[1729124011137,1.62213,2617.0,2616.9,2.042396]
[1729124013835,1.62213,2617.0,2616.9,1.0465]
[1729124014233,1.62213,2617.0,2616.9,2.042396]
[1729124014428,1.62213,2617.0,2616.9,2.424546]
[1729124015336,1.62213,2617.0,2616.9,2.042396]
[1729124015934,0.5285,2617.1,2616.9,3.282396]
[1729124016128,0.58102484,2617.2,2617.0,6.438816]
[1729124016434,0.58102484,2617.2,2617.0,2.235896]
[1729124016635,4.4478,2617.3,2617.1,1.378006]
[1729124016829,4.82989,2617.3,2617.2,0.5089]
[1729124017035,4.82989,2617.3,2617.2,1.046]
[1729124020438,1.62209,2617.3,2617.2,1.046]
[1729124020636,1.24,2617.3,2617.2,1.046]
[1729124020844,1.24,2617.3,2617.2,1.4281]
[1729124021043,1.62209,2617.3,2617.2,1.046]
[1729124021933,0.999,2617.4,2617.3,0.38208]
[1729124022137,0.999,2617.4,2617.3,3.127776]
[1729124022341,2.239,2617.4,2617.3,1.887776]
[1729124023541,1.24,2617.4,2617.3,1.887776]
[1729124024744,1.24,2617.4,2617.3,3.26160214]
[1729124025438,1.24,2617.4,2617.3,2.26570614]
[1729124026035,1.24,2617.4,2617.3,3.26158409]
[1729124028040,1.24,2617.4,2617.3,3.2617788]
[1729124028233,1.62207,2617.4,2617.3,3.2617788]
[1729124028635,1.24,2617.4,2617.3,2.26590085]
[1729124029548,1.24,2617.4,2617.3,3.26193118]
[1729124030342,1.62207,2617.4,2617.3,3.26195707]
[1729124030942,1.62207,2617.4,2617.3,2.26590085]
[1729124032441,0.999,2617.7,2617.3,6.33162085]
[1729124032640,1.62205,2617.6,2617.5,0.99590861]
[1729124032841,0.38204,2617.6,2617.5,1.37795861]
[1729124033040,0.38204,2617.6,2617.5,1.51690861]
[1729124033247,0.38204,2617.6,2617.5,1.89896861]
[1729124033447,1.24,2617.7,2617.5,1.89896861]
[1729124033641,0.38204,2617.6,2617.5,1.89896861]
[1729124034544,1.62204,2617.6,2617.5,1.89896861]
[1729124035144,1.24,2617.6,2617.5,1.89896861]
[1729124035450,1.62204,2617.6,2617.5,1.51690861]
[1729124036044,1.24,2617.6,2617.5,1.89896861]
[1729124036349,1.62204,2617.6,2617.5,1.89896861]
[1729124037549,1.62204,2617.6,2617.5,1.51690861]
[1729124038250,1.62204,2617.6,2617.5,2.89120701]
[1729124040650,1.62204,2617.6,2617.5,1.8952984]
[1729124040856,1.62204,2617.6,2617.5,3.38916131]
[1729124041049,1.62204,2617.6,2617.5,2.89154651]
[1729124041253,1.62204,2617.6,2617.5,2.89155331]
[1729124041753,1.62204,2617.6,2617.5,1.8952984]
[1729124042248,1.62204,2617.6,2617.5,3.38916131]
[1729124043947,0.38206,2617.5,2617.4,0.99661802]
[1729124044160,0.38207,2617.4,2617.3,0.99661802]
[1729124044354,0.38209,2617.3,2617.2,0.99661802]
[1729124044553,1.62209,2617.3,2617.2,0.99661802]
[1729124046155,1.62209,2617.3,2617.2,1.37604468]
[1729124046457,1.62209,2617.3,2617.2,2.86990759]
[1729124046857,1.81724528,2617.3,2617.2,2.86990759]
[1729124049050,1.81724528,2617.3,2617.2,1.37604468]
[1729124049455,1.81724528,2617.3,2617.2,2.86990759]
[1729124049851,1.81724528,2617.3,2617.2,1.37604468]
[1729124050254,2.81624528,2617.3,2617.2,1.37604468]
[1729124050657,2.81624528,2617.3,2617.2,2.86990759]
[1729124050953,2.81624528,2617.3,2617.2,2.87041221]
[1729124052955,2.81624528,2617.3,2617.2,2.87055324]
[1729124053160,2.81624528,2617.3,2617.2,3.39895324]
[1729124056148,2.81624528,2617.3,2617.2,3.39918454]
[1729124056354,2.43415528,2617.3,2617.2,3.39918454]
[1729124056551,1.38109,2617.3,2617.2,3.39918454]
[1729124056758,2.62109,2617.3,2617.2,3.90271002]
[1729124059561,2.62109,2617.3,2617.2,6.65345908]
[1729124061264,2.62109,2617.3,2617.2,2.52578839]
[1729124061471,2.62109,2617.3,2617.2,6.65219027]
[1729124061970,2.62109,2617.3,2617.2,7.03429027]
[1729124062373,2.62109,2617.3,2617.2,8.27429027]
[1729124062374,0.999,2617.3,2617.2,8.27429027]
[1729124062579,0.999,2617.3,2617.2,6.27690188]
[1729124063674,1.38109,2617.3,2617.2,6.27690188]
[1729124064172,0.999,2617.3,2617.2,6.27690188]
[1729124064381,0.57685112,2617.4,2617.3,0.38209]
[1729124064583,0.38208,2617.4,2617.3,7.7460398]
[1729124064875,1.62208,2617.4,2617.3,6.5060398]
[1729124065580,1.62208,2617.4,2617.3,6.1239498]
[1729124066179,1.62208,2617.4,2617.3,3.37323149]
[1729124066571,1.62208,2617.4,2617.3,6.12464586]
[1729124066884,1.81531248,2617.4,2617.3,3.37323149]
[1729124067180,2.35461248,2617.4,2617.3,3.37323149]
[1729124067380,2.35461248,2617.4,2617.3,6.12469895]
[1729124067581,2.35461248,2617.4,2617.3,3.37323149]